Cogmind - Beta 14 @@@ ROGUE MODE // 2024.10.30 @ 20:34:03 Player: SpaceWalrus Result: Destroyed by H-55 Commando with Gauss Rifle Performance ------------- Evolutions (2) 1000 Regions Visited (3) 600 Robots Destroyed (45) 225 Value Destroyed (1084) 1084 Prototype IDs (0) 0 Alien Tech Used (0) 0 Bonus (0) 0 TOTAL SCORE: 2909 Bonus ------- None Cogmind --------- Core Integrity 0/550 Matter 229/300 Energy 100/100 System Corruption 0% Temperature Cool (0) Movement Core (450) Ox8 Location -8/Materials Parts ------- > --- POWER (1) -------- (None) > --- PROPULSION (3) --- (None) > --- UTILITY (5) ------ Improved Heat Sink Medium Storage Unit Heavy Armor Plating Hacking Suite > --- WEAPON (2) ------- (None) > --- INVENTORY (10) --- Deuterium Engine Structural Scanner Peak State ------------ > --- POWER ------------ Ion Engine > --- PROPULSION ------- Aluminum Leg Aluminum Leg Aluminum Leg > --- UTILITY ---------- Improved Heat Sink Medium Storage Unit Structural Scanner Hacking Suite > --- WEAPON ----------- Shotgun Improved Light Cannon > --- INVENTORY -------- EM Pulse Gun Grenade Launcher [Rating: 16] Favorites ----------- Power Ion Engine Engine Ion Engine Power Core Light Nuclear Core Propulsion Aluminum Leg Leg Aluminum Leg Flight Unit Flight Unit Utility Small Storage Unit Device Improved Heat Sink Storage Small Storage Unit Processor Signal Interpreter Hackware Hacking Suite Protection Light Armor Plating Weapon Small Laser Energy Gun Small Laser Ballistic Gun Shotgun Ballistic Cannon Light Cannon Launcher Grenade Launcher Build | -11 -10 -9 -8 ------- Run | Yrd Mat Mat Mat Slots Evolved 4 | . . 2 2 Power . | . . . . Propulsion 1 | . . . 1 Utility 3 | . . 2 1 Weapon . | . . . . Parts Attached 40 | 5 12 15 8 Power 5 | 1 2 1 1 Engine 3 | 1 1 1 . Core 2 | . 1 . 1 Reactor . | . . . . Propulsion 10 | 2 4 3 1 Treads . | . . . . Leg 9 | 2 3 3 1 Wheel . | . . . . Hover . | . . . . Flight 1 | . 1 . . Utility 12 | . 3 7 2 Device 4 | . 1 2 1 Storage 2 | . 1 1 . Processor 1 | . . 1 . Hackware 1 | . . 1 . Protection 4 | . 1 2 1 Artifact . | . . . . Weapon 13 | 2 3 4 4 Energy Gun 6 | 2 1 1 2 Energy Cannon . | . . . . Ballistic Gun 3 | . 1 1 1 Ballistic Cannon 3 | . 1 2 . Launcher 1 | . . . 1 Special Weapon . | . . . . Impact Weapon . | . . . . Slashing Weapon . | . . . . Piercing Weapon . | . . . . Special Melee Weapon . | . . . . Unidentified Prototypes . | . . . . Corrupted Parts 1 | . 1 . . System Corruption 8 | . 8 . . Parts Lost 18 | . 4 4 10 Power 4 | . 1 1 2 Propulsion 4 | . 1 . 3 Utility 3 | . . 3 . Weapon 7 | . 2 . 5 Highest Loss Streak 7 | . 2 2 7 To Critical Strikes . | . . . . Average Slot Usage (%) 87 | . 92 90 61 Engine 8 | . 12 6 4 Core 1 | . . 4 . Leg 20 | . 21 21 12 Flight 1 | . 4 . . Device 10 | . 12 7 15 Storage 12 | . 14 11 9 Processor 1 | . . 2 . Hackware 1 | . . 1 9 Protection 6 | . 1 13 1 Energy Gun 13 | . 21 8 2 Ballistic Gun 2 | . 1 4 4 Ballistic Cannon 5 | . 3 9 3 Peak Build Rating 16 | 5 9 15 16 Average Rating 9 | 4 7 10 12 On Entrance 7 | . 5 9 15 Naked Turns . | . . . . Heaviest Build 26 | 9 17 26 26 Greatest Support 30 | 20 20 20 30 Greatest Overweight (x) 8 | 1 1 1 8 Average Overweight (x) . | . . . 1 Largest Inventory Capacity 10 | 5 8 10 10 Average Capacity 8 | 5 7 9 10 Most Carried 8 | 5 8 8 5 Average Carried 5 | 3 7 4 2 Final Capacity 10 | 5 8 10 10 Final Carried 7 | 5 7 3 2 Class Distribution -------------------- 50% | Mutant 49% | Scavenger-Mutant Dominant Class ---------------- Mutant | -10/Materials Scavenger-Mutant | -9/Materials Mutant | -8/Materials Resources | -11 -10 -9 -8 ----------- Run | Yrd Mat Mat Mat Matter Collected 895 | 250 113 357 175 Remotely . | . . . . Salvage Created 1248 | 201 404 382 261 Parts 81 | 16 23 24 18 Haulers Intercepted 1 | . 1 . . Recyclers Shooed 1 | . . 1 . Parts Field Recycled . | . . . . Retrieved Matter . | . . . . Parts Self-Destructed . | . . . . Prevented . | . . . . Kills | -11 -10 -9 -8 ------- Run | Yrd Mat Mat Mat Combat Hostiles Destroyed 27 | . 9 11 7 Guns 19 | . 9 7 3 Cannons 4 | . . 4 . AOE 3 | . . . 3 Classes Destroyed 11 | 3 6 1 1 Worker 2 | 1 . . 1 Builder 4 | . 1 1 2 Tunneler 5 | 5 . . . Hauler 1 | . 1 . . Recycler 1 | 1 . . . Operator 2 | . 1 1 . Watcher 3 | . 1 1 1 Swarmer 7 | . 3 4 . Grunt 18 | . 6 6 6 Brawler 1 | . . 1 . Hunter 1 | . . . 1 Best Kill Streak 7 | 6 4 4 7 Combat Bots Only 4 | . 4 3 4 Max Kills in Single Turn 2 | 1 1 2 2 Gunslinging . | . . . . Exploded 1 | . . . 1 Melee . | . . . . Uniques/NPCs Destroyed . | . . . . Combat | -11 -10 -9 -8 -------- Run | Yrd Mat Mat Mat Hostile Shots Fired 272 | . 74 67 131 Missed 75 | . 21 19 35 Damage Taken 2704 | . 665 515 1524 Core 725 | . 97 71 557 Absorbed by Shields . | . . . . Core Remaining (%) 81 | 100 61 82 . Volleys Fired 186 | 28 62 53 43 Largest 2 | 1 2 2 2 Hottest 90 | 50 90 75 69 Shots Fired 271 | 28 91 99 53 Gun 209 | 28 85 59 37 Cannon 56 | . 6 40 10 Launcher 6 | . . . 6 Special . | . . . . Kinetic 88 | . 6 55 27 Thermal 135 | 18 73 44 . Explosive 6 | . . . 6 Electromagnetic 42 | 10 12 . 20 Robot Hit Streak 14 | 5 8 7 14 Robot Miss Streak 5 | 3 4 4 5 Penetration Max . | . . . . Secondary Targets 1 | . 1 . . Max Gunslinging Chain 1 | . 1 . . Shots Hit Robots 164 | 18 54 51 41 Core Hits 77 | 7 21 22 27 Critical Kills . | . . . . Critical Parts Destroyed . | . . . . Critical Strikes 7 | 2 2 3 . Burn 4 | 2 2 . . Blast 3 | . . 3 . Melee Attacks . | . . . . Impact . | . . . . Slashing . | . . . . Piercing . | . . . . Sneak Attacks . | . . . . Combat Hostiles . | . . . . Follow-up Attacks . | . . . . Damage Inflicted 2806 | 249 697 745 1115 Guns 1743 | 249 624 414 456 Cannons 536 | . 73 331 132 Explosions 527 | . . . 527 Melee . | . . . . Ramming . | . . . . Kinetic 922 | . 73 509 340 Thermal 913 | 167 510 236 . Explosive 527 | . . . 527 Electromagnetic 444 | 82 114 . 248 Impact . | . . . . Slashing . | . . . . Piercing . | . . . . Highest Corruption 8 | . 8 6 . Average Corruption 5 | . 8 5 . Corruption Purged . | . . . . Corruption Blocked . | . . . . Effects 9 | . . 9 . Message Errors 2 | . . 2 . Matter Fused 4 | . . 4 . Heat Flow Errors 1 | . . 1 . Parts Fused 1 | . . 1 . Weapon Failures 1 | . . 1 . Overload Shots . | . . . . Overflow Damage 53 | . 53 . . Projectiles . | . . . . Explosions 53 | . 53 . . Melee . | . . . . Knockbacks 5 | . . 3 2 Impact . | . . . . Kinetic 5 | . . 3 2 Secondary . | . . . . Self-Inflicted Damage 106 | . 92 . 14 Shots 2 | . 1 . 1 Rammed . | . . . . Targets Rammed . | . . . . Kicked . | . . . . Crushed . | . . . . Highest Temperature 300 | 110 300 260 16 Average Temperature 75 | 43 71 94 6 Received Heat Transfer 1020 | . 249 96 675 Effects 3 | . . 3 . Interference 3 | . . 3 . Siege Activations . | . . . . Robots Corrupted 1 | . . . 1 Combat Hostiles 1 | . . . 1 Parts Fried 3 | 1 . . 2 Impact Corruptions . | . . . . Robots Melted 1 | 1 . . . Combat Hostiles . | . . . . Parts Melted 2 | 1 1 . . Heat Transferred 2653 | 629 1499 525 . Parts Sabotaged . | . . . . Parts Stolen . | . . . . Parts Stripped . | . . . . Power Chain Reactions . | . . . . Alert | -11 -10 -9 -8 ------- Run | Yrd Mat Mat Mat Peak Influence 319 | 35 246 319 266 Initial 65 | . 22 59 65 Average 136 | 14 100 181 187 Maximum Alert Level 1 | . 1 1 1 Low Security (%) 76 | 100 98 61 37 Level 1 23 | . 1 38 62 Level 2 . | . . . . Level 3 . | . . . . Level 4 . | . . . . Level 5 . | . . . . High Security . | . . . . Max Security . | . . . . Squads Dispatched 5 | . 2 1 2 Investigation . | . . . . Extermination . | . . . . Reinforcement 5 | . 2 1 2 Assault . | . . . . Garrison . | . . . . Intercept . | . . . . Searches Triggered . | . . . . Construction Impeded 1 | . . . 1 Haulers Reinforced . | . . . . Active Scanning Responses . | . . . . Cargo Convoy Interrupts . | . . . . Stealth | -11 -10 -9 -8 --------- Run | Yrd Mat Mat Mat Distress Signals 3 | . 1 2 . Communications Jammed . | . . . . Distress Signals . | . . . . Times Spotted 53 | . 19 20 14 Peak Tracking Total 5 | . 4 5 4 Tactical Retreats 4 | . 1 2 1 Traps | -11 -10 -9 -8 ------- Run | Yrd Mat Mat Mat Traps Triggered . | . . . . Indirectly . | . . . . Trap Hack Attempts . | . . . . Triggered . | . . . . Disarmed . | . . . . Reprogrammed . | . . . . Reused . | . . . . Traps Extracted . | . . . . Installed . | . . . . Triggered . | . . . . Machines | -11 -10 -9 -8 ---------- Run | Yrd Mat Mat Mat Machines Disabled 5 | . 2 . 3 Max in Single Turn 2 | . 2 . 1 Machines Repaired . | . . . . Machines Dismantled . | . . . . Machines Sabotaged . | . . . . Overloaded Fab Kills . | . . . . Hacking | -11 -10 -9 -8 --------- Run | Yrd Mat Mat Mat Machines Accessed 3 | . 1 2 . Terminals 3 | . 1 2 . Fabricators . | . . . . Repair Stations . | . . . . Recycling Units . | . . . . Scanalyzers . | . . . . Garrison Access . | . . . . Total Hacks 4 | . 2 2 . Successful 1 | . . 1 . Failed 3 | . 2 1 . Catastrophic 1 | . . 1 . Database Lockouts . | . . . . Manual . | . . . . Terminals 4 | . 2 2 . Fabricators . | . . . . Repair Stations . | . . . . Recycling Units . | . . . . Scanalyzers . | . . . . Garrison Access . | . . . . Terminal Hacks 1 | . . 1 . Surveillance Status 1 | . . 1 . Fabricator Hacks . | . . . . Repair Station Hacks . | . . . . Recycling Unit Hacks . | . . . . Scanalyzer . | . . . . Garrison Access Hacks . | . . . . Unauthorized Hacks . | . . . . Terminals . | . . . . Fabricators . | . . . . Repair Stations . | . . . . Recycling Units . | . . . . Scanalyzers . | . . . . Garrison Access . | . . . . Data Cores Recovered . | . . . . Used . | . . . . Hacking Detections 1 | . 1 . . Full Trace Events . | . . . . Feedback Events . | . . . . Feedback Blocked . | . . . . Robot Schematics Acquired . | . . . . Robots Built . | . . . . Authchips . | . . . . Time . | . . . . Total Robot Build Rating . | . . . . Part Schematics Acquired . | . . . . Parts Built . | . . . . Authchips . | . . . . Time . | . . . . Total Part Build Rating . | . . . . Parts Repaired . | . . . . Time . | . . . . Parts Recycled . | . . . . Recycled Matter . | . . . . Retrieved Matter . | . . . . Retrieved Components . | . . . . Parts Scanalyzed . | . . . . Part Schematics Acquired . | . . . . Parts Damaged . | . . . . Bothacking | -11 -10 -9 -8 ------------ Run | Yrd Mat Mat Mat Used RIF Installer . | . . . . Robots Hacked . | . . . . Non-combat . | . . . . Combat . | . . . . Robot Hacks Applied . | . . . . Relay Couplers Released . | . . . . Fabnet Peak Effective % . | . . . . Robots Rewired . | . . . . Allies Hacked . | . . . . Hacks Repelled . | . . . . Allies | -11 -10 -9 -8 -------- Run | Yrd Mat Mat Mat Total Allies . | . . . . Largest Group . | . . . . Highest-Rated Group . | . . . . Highest-Rated Ally . | . . . . Total Orders . | . . . . Ally Attacks . | . . . . Total Damage . | . . . . Kills . | . . . . Allies Corrupted . | . . . . Allies Melted . | . . . . Intel | -11 -10 -9 -8 ------- Run | Yrd Mat Mat Mat Robot Analysis Total . | . . . . Derelict Logs Recovered . | . . . . Drone Launches . | . . . . Drone Recoveries . | . . . . Exploration | -11 -10 -9 -8 ------------- Run | Yrd Mat Mat Mat Turns Passed 1789 | 135 735 666 253 Spaces Moved 804 | 62 376 286 80 Core 40 | 14 . . 26 Treads . | . . . . Legs 764 | 48 376 286 54 Wheels . | . . . . Hover . | . . . . Flight . | . . . . Fastest Speed 50 | 50 120 120 120 Average Speed 149 | 105 141 163 174 Slowest Speed 450 | 120 190 190 450 Overloaded Moves . | . . . . Propulsion Burnouts . | . . . . Robots Hopped . | . . . . Cave-ins Triggered . | . . . . Exploration Rate (%) 24 | 4 63 21 10 Regions Visited 3 Branch Regions . Pre-discovered Areas . | . . . . Known Exits Taken . | . . . . Unknown Exits Taken 3 | 1 1 1 . Scrap Searched . | . . . . Spaces Dug . | . . . . Terrain Destroyed 30 | . 17 . 13 Melee . | . . . . Projectile . | . . . . AOE 30 | . 17 . 13 Terrain Rammed . | . . . . Walls Destroyed . | . . . . Machines Disabled . | . . . . Actions | -11 -10 -9 -8 --------- Run | Yrd Mat Mat Mat Total 1123 | 103 489 387 144 Wait 43 | . 21 17 5 Move 801 | 61 375 285 80 Hop . | . . . . Pick Up 35 | 9 12 9 5 Fast Attach 3 | 1 2 . . Attach 30 | 4 7 12 7 Detach 3 | . . 1 2 Swap 7 | . 3 3 1 Drop 15 | . 7 7 1 Fire 186 | 28 62 53 43 Melee . | . . . . Ram . | . . . . Kick . | . . . . Crush . | . . . . Escape Stasis . | . . . . Rewire . | . . . . Trap . | . . . . Miscellaneous . | . . . . Route ------- -11/Scrapyard -10/Materials (discovered 2 exits: *Mat x2) -9/Materials -8/Materials History --------- Turn | Location | Event 2 | -11/Scrapyard | Met Revision 17 7 | -11/Scrapyard | Discovered new exit (range 15) 136 | -11/Scrapyard | Entered Materials 312 | -10/Materials | Build established: Mutant 677 | -10/Materials | Discovered new exit (range 3) 840 | -10/Materials | Discovered new exit (range 16) 871 | -10/Materials | Entered another Materials area 871 | -9/Materials | Evolved 2 slots: Utility x2 1258 | -9/Materials | Build established: Scavenger-Mutant 1484 | -9/Materials | Discovered new exit (range 8) 1537 | -9/Materials | Entered another Materials area 1537 | -8/Materials | Evolved 2 slots: Propulsion x1, Utility x1 1712 | -8/Materials | Lost 7 parts (1p3n3w) 1732 | -8/Materials | Core integrity fell below 50% 1764 | -8/Materials | Core integrity fell below 20% 1790 | -8/Materials | Destroyed by H-55 Commando with Gauss Rifle Last Messages --------------- K-01 Serf collects debris. U-05 Engineer builds a Wall. R-06 Scavenger collects Wheel. Slug penetrates Wall. K-01 Serf collects debris. U-05 Engineer builds a Wall. R-06 Scavenger collects Lgt. Nuclear Core. K-01 Serf collects debris. Slug penetrates Earth. U-05 Engineer builds a Door. U-05 Engineer lays Concrete. K-01 Serf collects debris. U-05 Engineer lays Concrete. Acquired Deuterium Engine. K-01 Serf collects debris. Critical hit (Burn: +37). U-05 Engineer lays Concrete. U-05 Engineer builds a Wall. K-01 Serf collects debris. Slug penetrates Earth. Map ----- +----------------------------------------------------+ | ?????????????????????????????????????????????????? | | ?????????????????????????????????????????????????? | | ?????????????????????????????????????????????????? | | ??????????????????????????????????? ##### ### | | ???????????????????????????????????###########+### | | ???????????????????????????????????## | | ???????????????????????????????????## | | ????????????????????????#####??????## | | ???????????????????????? ??????## | | ????????????????????????? ??###### | | ????????????????????????? #?######! | | ?????????????????????????# #?## # ####### | | ?????????????????????????# #?## #[ # ## | | ????????????????????????## #### # #### | | ????????????????????????## #### # " | | ????????????????????????## #% """ #### | | ????????????????????###### + "" #### | | ??????????????????? # """ #### | | ????????????????######## # # #### | | ????????????????# # # ##?? | | ????????????????# k # ############?? | | ??????????????????""" *ug ############?? | | ??????????????????"""" u# ##???????????? | | ??????????????????"""" r ##???????????? | | ?????????????????""""" ! T#???????????? | | ????????????????# """ @ # ##???????????? | | ????????????????# u## # ## ##???????????? | | ????????????????# ?####### %#????????????? | | ????????????????######+#???????## #????????????? | | ???????????????????? ???????? ????????????? | | ??????????????????? ?????????? ???????????? | | ?????????????????? ??????????? ??????????? | | ?????????????????" ????????????##+#####?????????? | | ????????????????"" ??????????????????????????????? | | ???????????????? ???????????????????????????????? | | ???????????????? ???????????????????????????????? | | ???????????????""????????????????????????????????? | | ?????????????????????????????????????????????????? | | ?????????????????????????????????????????????????? | | ?????????????????????????????????????????????????? | | ?????????????????????????????????????????????????? | | ?????????????????????????????????????????????????? | | ?????????????????????????????????????????????????? | | ?????????????????????????????????????????????????? | | ?????????????????????????????????????????????????? | | ?????????????????????????????????????????????????? | | ?????????????????????????????????????????????????? | | ?????????????????????????????????????????????????? | | ?????????????????????????????????????????????????? | | ?????????????????????????????????????????????????? | +----------------------------------------------------+ Best States ------------- Heat Dissipation 45 Energy Generation 14 Energy Capacity 250 Matter Stores 300 Matter Capacity 300 Sight Range 16 Terrain Scan Density 10 Armor Coverage 600 Evasion (%) 55 Offensive Hacking 10 Item Schematics ----------------- None Robot Schematics ------------------ None Fabricated ------------ Nothing Alien Tech Used ----------------- None Achievements -------------- None Challenges ------------ None Game ------ Seed CatalystPotentialWings Manual? 0 Play Time 00:17:56 Cumulative 41.5 hours Start 2024.10.30 @ 20:18:40 End 2024.10.30 @ 20:34:03 Sessions 1 Manual Loads 0 Difficulty Rogue Special Mode None Game No. 54 Rogue 54 Adventurer 0 Explorer 0 Win Type - Total 0 Types 0/0/0/0/0/0/0/0/0 Lore% 20 Gallery% 40 Achievement% 27 Wizard Run 0 Options --------- Layout 1 ASCII 0 Keyboard 0 Movement Mouse Keybinds 0 Fullscreen 1 Font 24/Smallcaps Map View 50x40 Zoom Use 0% Tactical HUD 0 Map Filters NONE Filters NONE Steam 1 RUN: 5a6825b3-5409-4d73-8f37-2c618dc913d5